fUSD/lending_fUSD_20260520
["ID","MTS","AMOUNT","RATE_DAILY","PERIOD"]
[422657658,1779217832000,-7964.17,0.00012893,2]
[422657660,1779217832000,-150.99,0.00012893,2]
[422657677,1779217832000,-2200.0,0.000129,4]
[422657662,1779217832000,-9999.99,0.00012893,2]
[422657673,1779217832000,-24999.99,0.00012893,2]
[422657664,1779217832000,-9999.99,0.00012893,2]
[422657728,1779217832000,-199.68624318,0.00012902,2]
[422657675,1779217832000,-500.0,0.00012893,2]
[422657667,1779217832000,-299.99,0.00012893,2]
[422657679,1779217832000,-19504.22413286,0.00012902,2]
[422657669,1779217832000,-999.99,0.00012893,2]
[422657681,1779217832000,-51498.74395038,0.00012902,2]
[422657683,1779217832000,-11964.64338692,0.00012903,2]
[422657708,1779217832000,-21226.61461308,0.00012903,2]
[422657671,1779217832000,-4999.99,0.00012893,2]
[422657710,1779217832000,-8014.21365273,0.00012903,2]
[422657752,1779217838000,-2432.35822033,0.00012902,2]
[422657747,1779217838000,-2432.35822033,0.00012902,2]
[422657762,1779217838000,-2432.35822033,0.00012902,2]
[422657753,1779217838000,-2432.35822033,0.00012902,2]
[422657751,1779217838000,-2432.35822033,0.00012902,2]
[422657756,1779217838000,-2432.35822033,0.00012902,2]
[422657764,1779217838000,-2432.35822033,0.00012902,2]
[422657750,1779217838000,-2432.35822033,0.00012902,2]
[422657763,1779217838000,-2432.35822033,0.00012902,2]
[422657759,1779217838000,-2432.35822033,0.00012902,2]
[422657757,1779217838000,-2432.35822033,0.00012902,2]
[422657758,1779217838000,-2432.35822033,0.00012902,2]
[422657760,1779217838000,-2432.35822033,0.00012902,2]
[422657743,1779217838000,-274.86867175,0.00012902,2]
[422657755,1779217838000,-2432.35822033,0.00012902,2]
[422657746,1779217838000,-2432.35822033,0.00012902,2]
[422657748,1779217838000,-500.0,0.00012902,2]
[422657742,1779217838000,-500.0,0.00012902,2]
[422657767,1779217838000,-2432.35822033,0.00012902,2]
[422657732,1779217838000,-175.61273857,0.00012902,2]
[422657733,1779217838000,-2432.35822033,0.00012902,2]
[422657731,1779217838000,-300.31375682,0.00012902,2]
[422657734,1779217838000,-500.0,0.00012902,2]
[422657736,1779217838000,-500.0,0.00012902,2]
[422657744,1779217838000,-2432.35822033,0.00012902,2]
[422657735,1779217838000,-500.0,0.00012902,2]
[422657745,1779217838000,-500.0,0.00012902,2]
[422657749,1779217838000,-2432.35822033,0.00012902,2]
[422657741,1779217838000,-2432.35822033,0.00012902,2]
[422657740,1779217838000,-490.98294935,0.00012902,2]
[422657737,1779217838000,-2432.35822033,0.00012902,2]
[422657739,1779217838000,-477.56032906,0.00012902,2]
[422657738,1779217838000,-613.75413033,0.00012902,2]
[422657770,1779217838000,-2432.35822033,0.00012902,2]
[422657761,1779217838000,-2432.35822033,0.00012902,2]
[422657773,1779217838000,-2432.35822033,0.00012902,2]
[422657788,1779217838000,-2432.35822033,0.00012902,2]
[422657786,1779217838000,-2432.35822033,0.00012902,2]
[422657792,1779217838000,-2432.35822033,0.00012902,2]
[422657802,1779217838000,-2500.0,0.00012931,2]
[422657791,1779217838000,-2432.35822033,0.00012902,2]
[422657796,1779217838000,-2432.35822033,0.00012902,2]
[422657797,1779217838000,-2432.35822033,0.00012902,2]
[422657795,1779217838000,-2432.35822033,0.00012902,2]
[422657794,1779217838000,-2432.35822033,0.00012902,2]
[422657793,1779217838000,-2432.35822033,0.00012902,2]
[422657799,1779217838000,-6803.7659,0.00012903,2]
[422657801,1779217838000,-690.85711466,0.0001293,2]
[422657800,1779217838000,-10096.52954664,0.00012921,2]
[422657803,1779217838000,-2351.0,0.00012946,2]
[422657775,1779217838000,-2432.35822033,0.00012902,2]
[422657787,1779217838000,-2432.35822033,0.00012902,2]
[422657789,1779217838000,-2432.35822033,0.00012902,2]
[422657798,1779217838000,-79374.26981811,0.00012903,2]
[422657785,1779217838000,-2432.35822033,0.00012902,2]
[422657765,1779217838000,-2432.35822033,0.00012902,2]
[422657790,1779217838000,-2432.35822033,0.00012902,2]
[422657772,1779217838000,-2432.35822033,0.00012902,2]
[422657768,1779217838000,-2432.35822033,0.00012902,2]
[422657777,1779217838000,-2432.35822033,0.00012902,2]
[422657766,1779217838000,-2432.35822033,0.00012902,2]
[422657771,1779217838000,-2432.35822033,0.00012902,2]
[422657769,1779217838000,-2432.35822033,0.00012902,2]
[422657778,1779217838000,-2432.35822033,0.00012902,2]
[422657782,1779217838000,-2432.35822033,0.00012902,2]
[422657780,1779217838000,-2432.35822033,0.00012902,2]
[422657779,1779217838000,-2432.35822033,0.00012902,2]
[422657784,1779217838000,-2432.35822033,0.00012902,2]
[422657783,1779217838000,-2432.35822033,0.00012902,2]
[422657781,1779217838000,-2432.35822033,0.00012902,2]
[422657839,1779217839000,-588.32065924,0.00013103,2]
[422657836,1779217839000,-500.0,0.00013103,2]
[422657837,1779217839000,-415.14224827,0.00013103,2]
[422657835,1779217839000,-500.0,0.00013103,2]
[422657834,1779217839000,-500.0,0.00013103,2]
[422657833,1779217839000,-500.0,0.00013103,2]
[422657838,1779217839000,-500.0,0.00013103,2]
[422657841,1779217839000,-16723.36218365,0.00013131,2]
[422657842,1779217839000,-51498.74395038,0.00013134,2]
[422657832,1779217839000,-500.0,0.00013103,2]
[422657840,1779217839000,-500.0,0.00013103,2]
[422657853,1779217839000,-1500000.0,0.00013362,2]
[422657850,1779217839000,-170.42,0.00013293,2]
[422657843,1779217839000,-500.0,0.00013167,2]
[422657851,1779217839000,-1853.73027663,0.00013343,2]
[422657845,1779217839000,-51498.74395038,0.00013211,2]
[422657847,1779217839000,-3525.0,0.00013233,5]
[422657849,1779217839000,-51498.74395038,0.00013289,2]
[422657844,1779217839000,-19504.22413279,0.00013187,2]
[422657848,1779217839000,-2162.93773332,0.00013242,2]
[422657846,1779217839000,-4713.60059629,0.00013231,2]
[422657854,1779217839000,-51498.74395038,0.00013366,2]
[422657831,1779217839000,-228.46545425,0.00013103,2]
[422657855,1779217839000,-34844.49593634,0.00013403,2]
[422657852,1779217839000,-1429.53328883,0.00013352,2]
[422657830,1779217839000,-313.38113273,0.00013103,2]
[422657816,1779217839000,-51498.74395038,0.00013057,2]
[422657824,1779217839000,-1073.47442483,0.00013103,3]
[422657856,1779217839000,-1189.27604,0.00013409,2]
[422657805,1779217839000,-51498.74395038,0.00012979,2]
[422657804,1779217839000,-154.11064451,0.00012968,2]
[422657806,1779217839000,-500.0,0.00012986,2]
[422657808,1779217839000,-179.0,0.00013002,2]
[422657809,1779217839000,-179.0,0.00013002,2]
[422657807,1779217839000,-179.0,0.00013002,2]
[422657815,1779217839000,-5412.79929364,0.0001305,2]
[422657817,1779217839000,-2511.43136903,0.00013067,2]
[422657811,1779217839000,-5000.0,0.00013004,2]
[422657810,1779217839000,-179.36372684,0.00013002,2]
[422657826,1779217839000,-1073.47442483,0.00013103,3]
[422657812,1779217839000,-1853.73027669,0.00013031,2]
[422657814,1779217839000,-5551.60561076,0.00013031,2]
[422657829,1779217839000,-500.0,0.00013103,2]
[422657819,1779217839000,-6049.0,0.00013068,2]
[422657818,1779217839000,-336.6022,0.00013068,2]
[422657820,1779217839000,-1429.53328883,0.00013094,2]
[422657828,1779217839000,-1073.47442483,0.00013103,3]
[422657822,1779217839000,-1171.85860449,0.00013103,3]
[422657823,1779217839000,-1073.47442483,0.00013103,3]
[422657827,1779217839000,-1073.47442483,0.00013103,3]
[422657821,1779217839000,-1171.85860449,0.00013103,3]
[422657825,1779217839000,-1073.47442483,0.00013103,3]
[422657813,1779217839000,-1245.08499865,0.00013031,2]
[422657858,1779217839000,-493.816418,0.00013409,2]
[422657881,1779217839000,-850.44540735,0.00013538,2]
[422657857,1779217839000,-2365.995703,0.00013409,2]
[422657888,1779217839000,-2097.48,0.00013608,2]
[422657889,1779217839000,-102088.73,0.00013608,2]
[422657887,1779217839000,-2796.11,0.00013608,2]
[422657893,1779217839000,-500.0,0.0001363,2]
[422657899,1779217839000,-150.0,0.00013672,2]
[422657892,1779217839000,-500.0,0.0001363,2]
[422657902,1779217839000,-203.9,0.00013682,2]
[422657901,1779217839000,-203.9,0.00013682,2]
[422657900,1779217839000,-10000.0,0.00013682,2]
[422657895,1779217839000,-150.0,0.00013638,2]
[422657894,1779217839000,-433.0,0.00013633,2]
[422657883,1779217839000,-150.0,0.00013553,2]
[422657897,1779217839000,-150.0,0.00013645,2]
[422657904,1779217839000,-203.9,0.00013682,2]
[422657908,1779217839000,-203.9,0.00013682,2]
[422657910,1779217839000,-150.0,0.00013683,2]
[422657905,1779217839000,-203.9,0.00013682,2]
[422657912,1779217839000,-516.09371618,0.00013698,2]
[422657906,1779217839000,-203.9,0.00013682,2]
[422657909,1779217839000,-204.0,0.00013682,2]
[422657911,1779217839000,-500.0,0.00013698,2]
[422657903,1779217839000,-203.9,0.00013682,2]
[422657864,1779217839000,-4935.9338,0.00013461,2]
[422657907,1779217839000,-203.9,0.00013682,2]
[422657896,1779217839000,-34844.49593634,0.00013639,2]
[422657882,1779217839000,-150.0,0.0001354,2]
[422657898,1779217839000,-1853.73027663,0.00013654,2]
[422657891,1779217839000,-150.0,0.00013619,2]
[422657859,1779217839000,-1319.562755,0.00013424,2]
[422657885,1779217839000,-150.0,0.00013593,2]
[422657865,1779217839000,-19504.22413279,0.00013473,2]
[422657860,1779217839000,-2435.477211,0.00013424,2]
[422657863,1779217839000,-51498.74395038,0.00013443,2]
[422657862,1779217839000,-500.0,0.00013441,2]
[422657866,1779217839000,-150.0,0.00013488,2]
[422657878,1779217839000,-51498.74395038,0.00013521,2]
[422657870,1779217839000,-150.0,0.00013488,2]
[422657869,1779217839000,-150.0,0.00013488,2]
[422657872,1779217839000,-150.0,0.00013488,2]
[422657871,1779217839000,-150.0,0.00013488,2]
[422657879,1779217839000,-34844.49593634,0.00013521,2]
[422657890,1779217839000,-150.0,0.00013618,2]
[422657867,1779217839000,-151.44167909,0.00013488,2]
[422657873,1779217839000,-150.0,0.00013488,2]
[422657868,1779217839000,-150.0,0.00013488,2]
[422657874,1779217839000,-150.0,0.00013488,2]
[422657876,1779217839000,-150.0,0.00013488,2]
[422657875,1779217839000,-150.0,0.00013488,2]
[422657880,1779217839000,-212.82417601,0.00013538,2]
[422657884,1779217839000,-150.0,0.00013567,2]
[422657861,1779217839000,-1721.324184,0.00013424,2]
[422657877,1779217839000,-150.0,0.00013514,2]
[422657886,1779217839000,-150.0,0.00013595,2]
[422657954,1779217840000,-500.0,0.00013698,2]
[422657942,1779217840000,-500.0,0.00013698,2]
[422657958,1779217840000,-500.0,0.00013698,2]
[422657955,1779217840000,-500.0,0.00013698,2]
[422657956,1779217840000,-500.0,0.00013698,2]
[422657946,1779217840000,-500.0,0.00013698,2]
[422657949,1779217840000,-500.0,0.00013698,2]
[422657943,1779217840000,-500.0,0.00013698,2]
[422657948,1779217840000,-500.0,0.00013698,2]
[422657962,1779217840000,-509.06477309,0.00013698,2]
[422657953,1779217840000,-500.0,0.00013698,2]
[422657952,1779217840000,-500.0,0.00013698,2]
[422657970,1779217840000,-516.13,0.00013698,2]
[422657963,1779217840000,-516.13,0.00013698,2]
[422657959,1779217840000,-500.0,0.00013698,2]
[422657964,1779217840000,-516.13,0.00013698,2]
[422657957,1779217840000,-500.0,0.00013698,2]
[422657961,1779217840000,-500.0,0.00013698,2]
[422657971,1779217840000,-516.13,0.00013698,2]
[422657966,1779217840000,-516.13,0.00013698,2]
[422657969,1779217840000,-516.13,0.00013698,2]
[422657972,1779217840000,-516.13,0.00013698,2]
[422657976,1779217840000,-500.0,0.00013698,2]
[422657951,1779217840000,-500.0,0.00013698,2]
[422657973,1779217840000,-516.13,0.00013698,2]
[422657960,1779217840000,-500.0,0.00013698,2]
[422657945,1779217840000,-500.0,0.00013698,2]
[422657925,1779217840000,-500.0,0.00013698,2]
[422657944,1779217840000,-500.0,0.00013698,2]
[422657967,1779217840000,-516.13,0.00013698,2]
[422657913,1779217840000,-500.0,0.00013698,2]
[422657914,1779217840000,-500.0,0.00013698,2]
[422657915,1779217840000,-500.0,0.00013698,2]
[422657926,1779217840000,-500.0,0.00013698,2]
[422657920,1779217840000,-500.0,0.00013698,2]
[422657924,1779217840000,-500.0,0.00013698,2]
[422657918,1779217840000,-580.58046492,0.00013698,2]
[422657922,1779217840000,-500.0,0.00013698,2]
[422657921,1779217840000,-500.0,0.00013698,2]
[422657916,1779217840000,-500.0,0.00013698,2]
[422657923,1779217840000,-500.0,0.00013698,2]
[422657940,1779217840000,-500.0,0.00013698,2]
[422657927,1779217840000,-500.0,0.00013698,2]
[422657930,1779217840000,-500.0,0.00013698,2]
[422657934,1779217840000,-500.0,0.00013698,2]
[422657933,1779217840000,-500.0,0.00013698,2]
[422657931,1779217840000,-500.0,0.00013698,2]
[422657928,1779217840000,-500.0,0.00013698,2]
[422657935,1779217840000,-500.0,0.00013698,2]
[422657936,1779217840000,-500.0,0.00013698,2]
[422657939,1779217840000,-500.0,0.00013698,2]
[422657937,1779217840000,-500.0,0.00013698,2]
[422657938,1779217840000,-500.0,0.00013698,2]
[422657941,1779217840000,-500.0,0.00013698,2]
[422657950,1779217840000,-500.0,0.00013698,2]
[422657929,1779217840000,-500.0,0.00013698,2]
[422657965,1779217840000,-516.13,0.00013698,2]
[422657947,1779217840000,-500.0,0.00013698,2]
[422657975,1779217840000,-500.0,0.00013698,2]
[422658006,1779217840000,-500.0,0.00013698,2]
[422658008,1779217840000,-500.0,0.00013698,2]
[422658010,1779217840000,-500.0,0.00013698,2]
[422658011,1779217840000,-500.0,0.00013698,2]
[422658012,1779217840000,-500.0,0.00013698,2]
[422658007,1779217840000,-500.0,0.00013698,2]
[422658014,1779217840000,-500.0,0.00013698,2]
[422658015,1779217840000,-500.0,0.00013698,2]
[422658025,1779217840000,-500.0,0.00013698,2]
[422658017,1779217840000,-500.0,0.00013698,2]
[422658018,1779217840000,-500.0,0.00013698,2]
[422658020,1779217840000,-500.0,0.00013698,2]
[422658005,1779217840000,-437.75907725,0.00013698,2]
[422658016,1779217840000,-500.0,0.00013698,2]
[422658024,1779217840000,-500.0,0.00013698,2]
[422658023,1779217840000,-500.0,0.00013698,2]
[422658026,1779217840000,-500.0,0.00013698,2]
[422658032,1779217840000,-583.33,0.00013698,2]
[422658030,1779217840000,-583.33,0.00013698,2]
[422658028,1779217840000,-500.0,0.00013698,2]
[422658027,1779217840000,-500.0,0.00013698,2]
[422658031,1779217840000,-583.33,0.00013698,2]
[422658034,1779217840000,-583.33,0.00013698,2]
[422658029,1779217840000,-508.68888162,0.00013698,2]
[422658033,1779217840000,-583.33,0.00013698,2]
[422657974,1779217840000,-500.0,0.00013698,2]
[422658019,1779217840000,-500.0,0.00013698,2]
[422658003,1779217840000,-500.0,0.00013698,2]
[422658021,1779217840000,-500.0,0.00013698,2]
[422658013,1779217840000,-500.0,0.00013698,2]
[422657968,1779217840000,-516.13,0.00013698,2]
[422658004,1779217840000,-500.0,0.00013698,2]
[422657978,1779217840000,-500.0,0.00013698,2]
[422657988,1779217840000,-1376.07,0.00013698,2]
[422657977,1779217840000,-500.0,0.00013698,2]
[422657979,1779217840000,-500.0,0.00013698,2]
[422657984,1779217840000,-500.0,0.00013698,2]
[422657981,1779217840000,-500.0,0.00013698,2]
[422657987,1779217840000,-500.0,0.00013698,2]
[422657982,1779217840000,-500.0,0.00013698,2]
[422657985,1779217840000,-500.0,0.00013698,2]
[422657980,1779217840000,-500.0,0.00013698,2]
[422657986,1779217840000,-500.0,0.00013698,2]
[422657990,1779217840000,-1376.07,0.00013698,2]
[422657983,1779217840000,-508.82,0.00013698,2]
[422657997,1779217840000,-1376.07,0.00013698,2]
[422658002,1779217840000,-500.0,0.00013698,2]
[422658000,1779217840000,-500.0,0.00013698,2]
[422657993,1779217840000,-1376.07,0.00013698,2]
[422657999,1779217840000,-500.0,0.00013698,2]
[422657998,1779217840000,-1376.07,0.00013698,2]
[422657994,1779217840000,-1376.07,0.00013698,2]
[422657992,1779217840000,-1376.07,0.00013698,2]
[422657991,1779217840000,-1376.07,0.00013698,2]
[422657996,1779217840000,-1376.07,0.00013698,2]
[422658001,1779217840000,-500.0,0.00013698,2]
[422657989,1779217840000,-1376.07,0.00013698,2]
[422657995,1779217840000,-1376.07,0.00013698,2]
[422658083,1779217841000,-500.0,0.00013698,2]
[422658089,1779217841000,-500.0,0.00013698,2]
[422658087,1779217841000,-500.0,0.00013698,2]
[422658082,1779217841000,-500.0,0.00013698,2]
[422658081,1779217841000,-512.94389956,0.00013698,2]
[422658084,1779217841000,-500.0,0.00013698,2]
[422658079,1779217841000,-500.0,0.00013698,2]
[422658078,1779217841000,-500.0,0.00013698,2]
[422658076,1779217841000,-500.0,0.00013698,2]
[422658077,1779217841000,-500.0,0.00013698,2]
[422658090,1779217841000,-295.87292286,0.00013698,2]
[422658080,1779217841000,-500.0,0.00013698,2]
[422658098,1779217841000,-209.51466794,0.00013698,2]
[422658101,1779217841000,-513.26513415,0.00013698,2]
[422658088,1779217841000,-500.0,0.00013698,2]
[422658091,1779217841000,-500.0,0.00013698,2]
[422658094,1779217841000,-500.0,0.00013698,2]
[422658097,1779217841000,-500.0,0.00013698,2]
[422658096,1779217841000,-500.0,0.00013698,2]
[422658092,1779217841000,-500.0,0.00013698,2]
[422658095,1779217841000,-500.0,0.00013698,2]
[422658100,1779217841000,-455.91720419,0.00013698,2]
[422658109,1779217841000,-500.0,0.00013698,2]
[422658108,1779217841000,-500.0,0.00013698,2]
[422658099,1779217841000,-349.78123329,0.00013698,2]
[422658104,1779217841000,-500.0,0.00013698,2]
[422658074,1779217841000,-500.0,0.00013698,2]
[422658093,1779217841000,-500.0,0.00013698,2]
[422658085,1779217841000,-500.0,0.00013698,2]
[422658035,1779217841000,-583.33,0.00013698,2]
[422658075,1779217841000,-512.8400443,0.00013698,2]
[422658038,1779217841000,-583.33,0.00013698,2]
[422658103,1779217841000,-500.0,0.00013698,2]
[422658036,1779217841000,-583.33,0.00013698,2]
[422658041,1779217841000,-583.33,0.00013698,2]
[422658051,1779217841000,-583.33,0.00013698,2]
[422658053,1779217841000,-583.33,0.00013698,2]
[422658058,1779217841000,-583.33,0.00013698,2]
[422658055,1779217841000,-583.33,0.00013698,2]
[422658057,1779217841000,-583.33,0.00013698,2]
[422658056,1779217841000,-583.33,0.00013698,2]
[422658042,1779217841000,-583.33,0.00013698,2]
[422658049,1779217841000,-583.33,0.00013698,2]
[422658059,1779217841000,-583.33,0.00013698,2]
[422658086,1779217841000,-500.0,0.00013698,2]
[422658044,1779217841000,-583.33,0.00013698,2]
[422658060,1779217841000,-583.33,0.00013698,2]
[422658066,1779217841000,-500.0,0.00013698,2]
[422658065,1779217841000,-500.0,0.00013698,2]
[422658064,1779217841000,-500.0,0.00013698,2]
[422658070,1779217841000,-500.0,0.00013698,2]
[422658067,1779217841000,-500.0,0.00013698,2]
[422658069,1779217841000,-500.0,0.00013698,2]
[422658062,1779217841000,-583.33,0.00013698,2]
[422658063,1779217841000,-583.41,0.00013698,2]
[422658061,1779217841000,-583.33,0.00013698,2]
[422658072,1779217841000,-371.97687373,0.00013698,2]
[422658073,1779217841000,-500.0,0.00013698,2]
[422658071,1779217841000,-500.0,0.00013698,2]
[422658046,1779217841000,-583.33,0.00013698,2]
[422658107,1779217841000,-504.85547194,0.00013698,2]
[422658068,1779217841000,-500.0,0.00013698,2]
[422658105,1779217841000,-500.0,0.00013698,2]
[422658140,1779217841000,-500.0,0.00013698,2]
[422658136,1779217841000,-500.0,0.00013698,2]
[422658145,1779217841000,-500.0,0.00013698,2]
[422658143,1779217841000,-500.0,0.00013698,2]
[422658141,1779217841000,-500.0,0.00013698,2]
[422658144,1779217841000,-500.0,0.00013698,2]
[422658147,1779217841000,-500.0,0.00013698,2]
[422658149,1779217841000,-500.0,0.00013698,2]
[422658148,1779217841000,-500.0,0.00013698,2]
[422658159,1779217841000,-500.0,0.00013698,2]
[422658160,1779217841000,-500.0,0.00013698,2]
[422658155,1779217841000,-500.0,0.00013698,2]
[422658158,1779217841000,-500.0,0.00013698,2]
[422658142,1779217841000,-500.0,0.00013698,2]
[422658154,1779217841000,-500.0,0.00013698,2]
[422658151,1779217841000,-500.0,0.00013698,2]
[422658150,1779217841000,-500.0,0.00013698,2]
[422658157,1779217841000,-500.0,0.00013698,2]
[422658156,1779217841000,-500.0,0.00013698,2]
[422658153,1779217841000,-500.0,0.00013698,2]
[422658162,1779217841000,-500.0,0.00013698,2]
[422658161,1779217841000,-500.0,0.00013698,2]
[422658163,1779217841000,-500.0,0.00013698,2]
[422658165,1779217841000,-500.0,0.00013698,2]
[422658164,1779217841000,-500.0,0.00013698,2]
[422658167,1779217841000,-399.8127821,0.00013698,2]
[422658168,1779217841000,-500.0,0.00013698,2]
[422658102,1779217841000,-500.0,0.00013698,2]
[422658152,1779217841000,-425.07609623,0.00013698,2]
[422658146,1779217841000,-500.0,0.00013698,2]
[422658166,1779217841000,-500.0,0.00013698,2]
[422658138,1779217841000,-500.0,0.00013698,2]
[422658139,1779217841000,-500.0,0.00013698,2]
[422658106,1779217841000,-500.0,0.00013698,2]
[422658111,1779217841000,-500.0,0.00013698,2]
[422658118,1779217841000,-500.0,0.00013698,2]
[422658120,1779217841000,-500.0,0.00013698,2]
[422658119,1779217841000,-500.0,0.00013698,2]
[422658117,1779217841000,-500.0,0.00013698,2]
[422658112,1779217841000,-500.0,0.00013698,2]
[422658121,1779217841000,-500.0,0.00013698,2]
[422658113,1779217841000,-502.26457944,0.00013698,2]
[422658122,1779217841000,-500.0,0.00013698,2]
[422658114,1779217841000,-500.0,0.00013698,2]
[422658115,1779217841000,-500.0,0.00013698,2]
[422658116,1779217841000,-500.0,0.00013698,2]
[422658110,1779217841000,-500.0,0.00013698,2]
[422658132,1779217841000,-500.0,0.00013698,2]
[422658135,1779217841000,-500.0,0.00013698,2]
[422658123,1779217841000,-500.0,0.00013698,2]
[422658130,1779217841000,-500.0,0.00013698,2]
[422658128,1779217841000,-500.0,0.00013698,2]
[422658127,1779217841000,-500.0,0.00013698,2]
[422658126,1779217841000,-500.0,0.00013698,2]
[422658137,1779217841000,-500.0,0.00013698,2]
[422658134,1779217841000,-500.0,0.00013698,2]
[422658125,1779217841000,-500.0,0.00013698,2]
[422658124,1779217841000,-500.0,0.00013698,2]
[422658131,1779217841000,-500.0,0.00013698,2]
[422658133,1779217841000,-500.0,0.00013698,2]
[422658129,1779217841000,-500.0,0.00013698,2]
[422658207,1779217842000,-516.13,0.00013782,2]
[422658209,1779217842000,-1376.07,0.00013782,2]
[422658206,1779217842000,-516.13,0.00013782,2]
[422658208,1779217842000,-516.13,0.00013782,2]
[422658200,1779217842000,-500.0,0.00013782,2]
[422658199,1779217842000,-500.0,0.00013782,2]
[422658195,1779217842000,-500.0,0.00013782,2]
[422658198,1779217842000,-500.0,0.00013782,2]
[422658210,1779217842000,-1376.07,0.00013782,2]
[422658197,1779217842000,-500.0,0.00013782,2]
[422658205,1779217842000,-516.13,0.00013782,2]
[422658196,1779217842000,-500.0,0.00013782,2]
[422658213,1779217842000,-1376.07,0.00013782,2]
[422658211,1779217842000,-1376.07,0.00013782,2]
[422658212,1779217842000,-1376.07,0.00013782,2]
[422658216,1779217842000,-150.0,0.00013803,2]
[422658217,1779217842000,-150.0,0.00013809,2]
[422658215,1779217842000,-150.0,0.00013787,2]
[422658219,1779217842000,-166.37,0.00013818,2]
[422658227,1779217842000,-34844.49593634,0.00013875,2]
[422658228,1779217842000,-150.0,0.00013879,2]
[422658229,1779217842000,-150.0,0.00013882,2]
[422658218,1779217842000,-150.0,0.00013813,2]
[422658194,1779217842000,-500.0,0.00013782,2]
[422658220,1779217842000,-150.0,0.00013829,2]
[422658214,1779217842000,-1376.07,0.00013782,2]
[422658192,1779217842000,-500.0,0.00013782,2]
[422658186,1779217842000,-260.03,0.00013759,2]
[422658204,1779217842000,-516.13,0.00013782,2]
[422658222,1779217842000,-166.66,0.00013836,2]
[422658170,1779217842000,-531.04142936,0.00013698,2]
[422658169,1779217842000,-500.0,0.00013698,2]
[422658171,1779217842000,-150.0,0.00013698,2]
[422658172,1779217842000,-546.34,0.00013699,2]
[422658173,1779217842000,-7264.1,0.00013699,2]
[422658174,1779217842000,-200.0,0.00013699,2]
[422658175,1779217842000,-2500.0,0.00013699,2]
[422658178,1779217842000,-150.0,0.00013702,2]
[422658179,1779217842000,-150.0,0.00013702,2]
[422658180,1779217842000,-500.0,0.00013715,2]
[422658176,1779217842000,-166.66,0.00013699,2]
[422658201,1779217842000,-500.0,0.00013782,2]
[422658177,1779217842000,-150.0,0.00013702,2]
[422658183,1779217842000,-150.0,0.00013751,2]
[422658184,1779217842000,-34844.49593634,0.00013757,2]
[422658182,1779217842000,-150.0,0.00013748,2]
[422658185,1779217842000,-19504.22413279,0.00013758,2]
[422658187,1779217842000,-260.03,0.00013759,2]
[422658188,1779217842000,-150.0,0.00013777,2]
[422658190,1779217842000,-1376.07,0.00013781,2]
[422658189,1779217842000,-516.13,0.00013781,2]
[422658191,1779217842000,-500.0,0.00013782,2]
[422658193,1779217842000,-500.0,0.00013782,2]
[422658202,1779217842000,-500.0,0.00013782,2]
[422658203,1779217842000,-516.13,0.00013782,2]
[422658181,1779217842000,-150.0,0.00013724,2]
[422658226,1779217842000,-2000.0,0.00013864,2]
[422658241,1779217842000,-1245.08499863,0.00013966,2]
[422658221,1779217842000,-613.74,0.00013832,2]
[422658268,1779217842000,-166.66,0.0001411,2]
[422658258,1779217842000,-150.0,0.0001404,2]
[422658260,1779217842000,-150.0,0.00014066,2]
[422658265,1779217842000,-150.0,0.00014092,2]
[422658266,1779217842000,-500.0,0.00014093,2]